Workbook

Sheet Front Page
A2: Wedding Planner 1.0
A5: By Chris DuBois
A6: ckdubois@gmail.com
A7: MBA 614 - Winter 11
E9: Wedding Date: | G9: 2011-05-08
E10: Days until Wedding | G10: =G9-TODAY() -> 27
E12: Current RSVPs: | G12: =COUNTIF(Attendees!J:J,"YES") -> 0
E13: Current Guest Total: | G13: =SUMIFS(Attendees!G:G,Attendees!J:J,"YES") -> 0

Sheet Attendees (hidden)
A1: First Name | B1: Last Name | C1: Address | D1: City | E1: State | F1: Zip | G1: Total Guests | H1: Relation | I1: Invite Sent | J1: RSVP | K1: Gift | L1: Thank You Sent
A2: John Quincy | B2: Adams | C2: 1614 Kenton | D2: Ferndale | E2: MI | F2: 48220 | G2: =F2+1 -> 48221 | H2: Bride's Family | I2: NO | J2: PENDING | L2: NO
A3: Andrew | B3: Johnson | C3: 3000 Blackburn St #507 | D3: Dallas | E3: TX | F3: 75204 | G3: =F3+1 -> 75205 | H3: Bride's Family | I3: NO | J3: PENDING | L3: NO
A4: James K | B4: Polk | C4: 637 24th Street South | D4: Arlington | E4: VA | F4: 22202 | G4: =F4+1 -> 22203 | H4: Bride's Family | I4: NO | J4: PENDING | L4: NO
A5: George | B5: Washington | C5: 5525 18th Rd N | D5: Arlington | E5: VA | F5: 22205 | G5: =F5+1 -> 22206 | H5: Bride's Family | I5: NO | J5: PENDING | L5: NO
A6: Millard | B6: Fillmore | C6: 20710 Strathern St | D6: Canoga Park | E6: CA | F6: 91306 | G6: =F6+1 -> 91307 | H6: Bride's Friend | I6: NO | J6: PENDING | L6: NO
A7: Rutherford B. | B7: Hayes | C7: 1760 Frankstown Road | D7: Hollidaysburg | E7: PA | F7: 16648 | G7: =F7+1 -> 16649 | H7: Bride's Friend | I7: NO | J7: PENDING | L7: NO
A8: Thomas | B8: Jefferson | C8: 1651 Brentwood Dr | D8: Troy | E8: MI | F8: 48098 | G8: =F8+1 -> 48099 | H8: Bride's Friend | I8: NO | J8: PENDING | L8: NO
A9: Martin | B9: Van Buren | C9: 1812 Martin St. | D9: Conway | E9: AR | F9: 72034 | G9: =F9+1 -> 72035 | H9: Bride's Friend | I9: NO | J9: PENDING | L9: NO
A10: John | B10: Adams | C10: 569 Ashmoor Lane | D10: Lexington | E10: NC | F10: 27295 | G10: =F10+1 -> 27296 | H10: Groom's Family | I10: NO | J10: PENDING | L10: NO
A11: Ulysses S. | B11: Grant | C11: 783 Spring Lane | D11: Lansdale | E11: PA | F11: 19446 | G11: =F11+1 -> 19447 | H11: Groom's Family | I11: NO | J11: PENDING | L11: NO
A12: Andrew | B12: Jackson | C12: 118 22nd Ave E | D12: Seattle | E12: WA | F12: 98112 | G12: =F12+1 -> 98113 | H12: Groom's Family | I12: NO | J12: PENDING | L12: NO
A13: Zachary | B13: Taylor | C13: 4 Garrison Way | D13: Bangor | E13: ME | F13: 04401 | G13: =F13+1 -> 4402 | H13: Groom's Family | I13: NO | J13: PENDING | L13: NO
A14: James | B14: Buchanan | C14: 21 Cortland Dr. | D14: Stow | E14: MA | F14: 01775 | G14: =F14+1 -> 1776 | H14: Groom's Friend | I14: NO | J14: PENDING | L14: NO
A15: James | B15: Garfield | C15: 340 Wilkinson Way | D15: The Villages | E15: FL | F15: 32162 | G15: =F15+1 -> 32163 | H15: Groom's Friend | I15: NO | J15: PENDING | L15: NO
A16: William Henry | B16: Harrison | C16: 522 Greenwood St. Apt 1W | D16: Evanston | E16: IL | F16: 60201 | G16: =F16+1 -> 60202 | H16: Groom's Friend | I16: NO | J16: PENDING | L16: NO
A17: James | B17: Madison | C17: 2930 N Connecticut Avenue | D17: Royal Oaks | E17: MI | F17: 48073 | G17: 48074 | H17: Groom's Friend | I17: NO | J17: PENDING | L17: NO
A18: Chester A. | B18: Arthur | C18: 1105 Halcyon Ave. | D18: Nashville | E18: TN | F18: 37204 | G18: =F18+1 -> 37205 | H18: Mutual Friend | I18: NO | J18: PENDING | L18: NO
A19: Abraham | B19: Lincoln | C19: 49R Nursery Street | D19: Whitmans | E19: MA | F19: 2382 | G19: 2383 | H19: Mutual Friend | I19: NO | J19: PENDING | L19: NO
A20: James | B20: Monroe | C20: 425 Hillside | D20: Glen Ellyn | E20: IL | F20: 60137 | G20: =F20+1 -> 60138 | H20: Mutual Friend | I20: NO | J20: PENDING | L20: NO
A21: John | B21: Tyler | C21: 2561 Westview Ct | D21: Prosper | E21: TX | F21: 75078 | G21: =F21+1 -> 75079 | H21: Mutual Friend | I21: NO | J21: PENDING | L21: NO

Sheet Rehearsal Dinner (hidden)
A1: First Name | B1: Last Name | C1: Address | D1: City | E1: State | F1: Zip | G1: Total Guests

Sheet Wedding Party (hidden)
A1: First Name | B1: Last Name | C1: Role

Sheet Budget (hidden)
A1: Default Venue | B1: SPENT | C1: BUDGETED | D1: Tax Rate
A2: Facility (include gratuity)
A3: Alcohol (Beer, wine, champagne)
A4: Wedding Party Gifts
A5: Additional Decorations
A6: Music (DJ)
A7: Valet Parking
A8: Tuxedos (Groom, Groomsmen)
A9: Dresses (Bride & bridesmaids)
A10: Marriage License
A11: Guest Favours
A12: Photographer
A13: Marriage Certificate
A14: Limousine
A15: Announcements for those not invited
A16: Save the Date
A17: Save the Date Postage
A18: Invitations
A19: Invitation Postage
A20: Manicure/Pedicure
A21: Bride's Hair
A22: Honeymoon Suite
A23: Pre-tax Total | B23: =SUM(B2:B22) -> 0 | C23: =SUM(C2:C22) -> 0
A24: Tax | B24: =B23*(E1/100) -> 0 | C24: =C23*(E1/100) -> 0
A25: Grand Total | B25: =SUM(B23:B24) -> 0 | C25: =SUM(C23:C24) -> 0

Sheet states (hidden)
A1: States | B1: Relations | C1: Party | D1: Invite | E1: RSVP
A2: AL | B2: Bride's Family | C2: Maid of Honor | D2: YES | E2: YES
A3: AK | B3: Bride's Friend(s) | C3: Bridesmaid | D3: NO | E3: NO
A4: AZ | B4: Groom's Family | C4: Best Man | E4: PENDING
A5: AR | B5: Groom's Friend(s) | C5: Groomsman
A6: CA | B6: Mutual Friend(s) | C6: Usher
A7: CO | C7: Father of the Bride
A8: CT | C8: Mother of the Bride
A9: DC | C9: Father of the Groom
A10: DE | C10: Mother of the Groom
A11: FL | C11: Officiant
A12: GA | C12: Flower Girl
A13: HI | C13: Ring Bearer
A14: ID
A15: IL
A16: IN
A17: IA
A18: KS
A19: KY
A20: LA
A21: ME
A22: MD
A23: MA
A24: MI
A25: MN
A26: MS
A27: MO
A28: MT
A29: NE
A30: NV
A31: NH
A32: NJ
A33: NM
A34: NY
A35: NC
A36: ND
A37: OH
A38: OK
A39: OR
A40: PA
A41: RI
A42: SC
A43: SD
A44: TN
A45: TX
A46: UT
A47: VT
A48: VA
A49: WA
A50: WV
A51: WI
A52: WY

Sheet RSVP (hidden)
C1: RSVP
C2: PENDING
C3: PENDING
C4: PENDING
C5: PENDING
C6: PENDING
C7: PENDING
C8: PENDING
C9: PENDING
C10: PENDING
C11: PENDING
C12: PENDING
C13: PENDING
C14: PENDING
C15: PENDING
C16: PENDING
C17: PENDING
C18: PENDING
C19: PENDING
C20: PENDING
C21: PENDING

Sheet Invite (hidden)
C1: Invite Sent
C2: NO
C3: NO
C4: NO
C5: NO
C6: NO
C7: NO
C8: NO
C9: NO
C10: NO
C11: NO
C12: NO
C13: NO
C14: NO
C15: NO
C16: NO
C17: NO
C18: NO
C19: NO
C20: NO
C21: NO

Sheet Thank You (hidden)
C1: Thank You Sent
C2: NO
C3: NO
C4: NO
C5: NO
C6: NO
C7: NO
C8: NO
C9: NO
C10: NO
C11: NO
C12: NO
C13: NO
C14: NO
C15: NO
C16: NO
C17: NO
C18: NO
C19: NO
C20: NO
C21: NO

Sheet View RSVPs (hidden)
A1: First Name | B1: Last Name | C1: Address | D1: City | E1: State | F1: Zip | G1: Total Guests | H1: Relation | I1: Invite Sent | J1: RSVP | K1: Gift | L1: Thank You Sent

Sheet View Invites (hidden)
A1: First Name | B1: Last Name | C1: Address | D1: City | E1: State | F1: Zip | G1: Total Guests | H1: Relation | I1: Invite Sent | J1: RSVP | K1: Gift | L1: Thank You Sent

Sheet View Thank Yous (hidden)
A1: First Name | B1: Last Name | C1: Address | D1: City | E1: State | F1: Zip | G1: Total Guests | H1: Relation | I1: Invite Sent | J1: RSVP | K1: Gift | L1: Thank You Sent

Sheet Edit (hidden)
A1: First Name | B1: Last Name | C1: Address | D1: City | E1: State | F1: Zip | G1: Total Guests | H1: Relation | I1: Invite Sent | J1: RSVP | K1: Gift | L1: Thank You Sent

Sheet default (hidden)
A1: Default Venue | B1: SPENT | C1: BUDGETED | D1: Tax Rate
A2: Facility (include gratuity)
A3: Alcohol (Beer, wine, champagne)
A4: Wedding Party Gifts
A5: Additional Decorations
A6: Music (DJ)
A7: Valet Parking
A8: Tuxedos (Groom, Groomsmen)
A9: Dresses (Bride & bridesmaids)
A10: Marriage License
A11: Guest Favours
A12: Photographer
A13: Marriage Certificate
A14: Limousine
A15: Announcements for those not invited
A16: Save the Date
A17: Save the Date Postage
A18: Invitations
A19: Invitation Postage
A20: Manicure/Pedicure
A21: Bride's Hair
A22: Honeymoon Suite
A23: Pre-tax Total | B23: =SUM(B2:B22) -> 0 | C23: =SUM(C2:C22) -> 0
A24: Tax | B24: =B23*(E1/100) -> 0 | C24: =C23*(E1/100) -> 0
A25: Grand Total | B25: =SUM(B23:B24) -> 0 | C25: =SUM(C23:C24) -> 0
